Cogmind - Beta 13 @@@ ROGUE MODE // 2024.05.13 @ 19:09:07 Player: CrossedViper Result: Destroyed by 50-4GT(R) with Subdweller Laser Performance ------------- Evolutions (0) 0 Regions Visited (3) 600 Robots Destroyed (15) 75 Value Destroyed (232) 232 Prototype IDs (11) 220 Alien Tech Used (0) 0 Bonus (11) 11 TOTAL SCORE: 1138 Bonus ------- Follower Combat Kills 60 Friendly Fire -49 Cogmind --------- Core Integrity 0/250 Matter 290/300 Energy 101/125 System Corruption 0% Temperature Cool (8) Movement Treading (160) Location -10/Subcaves Parts ------- > --- POWER (1) -------- Light Ion Engine > --- PROPULSION (2) --- Light Treads Light Treads > --- UTILITY (2) ------ Large Storage Unit Light Armor Plating > --- WEAPON (2) ------- Beam Rifle Beam Rifle > --- INVENTORY (15) --- Light Treads Light Treads Cooling System Cooling System Structural Scanner Experimental Sensor Array Makeshift Hacking Suite Cobbler Unit Power Bank Beam Rifle Grenade Launcher Rocket Launcher Rocket Launcher Datajack Peak State ------------ > --- POWER ------------ Light Ion Engine > --- PROPULSION ------- Light Treads Light Treads > --- UTILITY ---------- Large Storage Unit Experimental Sensor Array > --- WEAPON ----------- Beam Rifle Beam Rifle > --- INVENTORY -------- Light Treads Light Treads Cooling System Cooling System Structural Scanner Light Armor Plating Makeshift Hacking Suite Power Bank Medium Laser Beam Rifle Beam Rifle Grenade Launcher Rocket Launcher Rocket Launcher Datajack [Rating: 20] Favorites ----------- Power Light Ion Engine Engine Light Ion Engine Propulsion Light Treads Treads Light Treads Utility Large Storage Unit Device Experimental Sensor Array Storage Large Storage Unit Processor Transport Network Coupler Protection Light Armor Plating Weapon Beam Rifle Energy Gun Beam Rifle Ballistic Gun Assault Rifle Launcher Grenade Launcher Build | -11 -10 -10 -10 ------- Run | Yrd Mat Min Sub Slots Evolved . | . . . . Power . | . . . . Propulsion . | . . . . Utility . | . . . . Weapon . | . . . . Parts Attached 24 | 6 7 6 5 Power 2 | 1 . 1 . Engine 2 | 1 . 1 . Core . | . . . . Reactor . | . . . . Propulsion 2 | 2 . . . Treads 2 | 2 . . . Leg . | . . . . Wheel . | . . . . Hover . | . . . . Flight . | . . . . Utility 11 | 1 4 3 3 Device 3 | . . 1 2 Storage 3 | 1 2 . . Processor 1 | . 1 . . Hackware . | . . . . Protection 4 | . 1 2 1 Artifact . | . . . . Weapon 9 | 2 3 2 2 Energy Gun 6 | 1 3 1 1 Energy Cannon . | . . . . Ballistic Gun 1 | 1 . . . Ballistic Cannon . | . . . . Launcher 2 | . . 1 1 Special Weapon . | . . . . Impact Weapon . | . . . . Slashing Weapon . | . . . . Piercing Weapon . | . . . . Special Melee Weapon . | . . . . Unidentified Prototypes 1 | . . 1 . Parts Lost 1 | . . 1 . Power 1 | . . 1 . Propulsion . | . . . . Utility . | . . . . Weapon . | . . . . Highest Loss Streak 1 | . . 1 . To Critical Strikes . | . . . . Average Slot Usage (%) 98 | . 97 99 100 Engine 13 | . 14 13 14 Treads 28 | . 28 28 28 Device 4 | . . . 13 Storage 14 | . 14 14 14 Protection 7 | . 8 13 . Energy Gun 24 | . 19 28 24 Ballistic Gun 2 | . 8 . . Launcher 1 | . . . 3 Naked Turns . | . . . . Heaviest Build 32 | 12 32 32 32 Greatest Support 40 | 40 40 40 40 Greatest Overweight (x) . | . . . . Average Overweight (x) . | . . . . Largest Inventory Capacity 15 | 8 15 15 15 Average Capacity 14 | 7 14 15 15 Most Carried 15 | 4 15 15 15 Average Carried 13 | 2 10 14 14 Final Capacity 15 | 8 15 15 15 Final Carried 15 | 4 15 15 15 Class Distribution -------------------- 100% | Mutant Dominant Class ---------------- Mutant | -10/Materials Mutant | -10/Mines Mutant | -10/Subcaves Resources | -11 -10 -10 -10 ----------- Run | Yrd Mat Min Sub Matter Collected 528 | 269 89 80 90 Remotely . | . . . . Salvage Created 413 | 74 196 78 65 Parts 34 | 1 21 8 4 Haulers Intercepted 2 | . 2 . . Recyclers Shooed . | . . . . Parts Field Recycled . | . . . . Retrieved Matter . | . . . . Parts Self-Destructed 8 | . . . 8 Prevented . | . . . . Kills | -11 -10 -10 -10 ------- Run | Yrd Mat Min Sub Combat Hostiles Destroyed 6 | . . 5 1 Guns 4 | . . 3 1 AOE 2 | . . 2 . Classes Destroyed 10 | 1 4 3 2 Worker 2 | . 2 . . Builder 1 | . 1 . . Hauler 2 | . 2 . . Recycler 1 | 1 . . . Watcher 3 | . 3 . . Swarmer 3 | . . 3 . Grunt 1 | . . 1 . Demolisher 1 | . . 1 . Artisan 1 | . . . 1 Subdweller 1 | . . . 1 Best Kill Streak 4 | 1 4 3 1 Combat Bots Only 3 | . . 3 1 Max Kills in Single Turn 2 | 1 1 2 1 Gunslinging . | . . . . Exploded 2 | . . 2 . Melee . | . . . . Uniques/NPCs Destroyed . | . . . . Combat | -11 -10 -10 -10 -------- Run | Yrd Mat Min Sub Hostile Shots Fired 36 | . . 34 2 Missed 4 | . . 4 . Damage Taken 667 | . 37 573 57 Core 256 | . 37 181 38 Absorbed by Shields . | . . . . Core Remaining (%) 100 | 100 . . . Volleys Fired 64 | 3 27 15 19 Largest 2 | 2 2 2 2 Hottest 112 | 70 112 112 112 Shots Fired 109 | 6 53 29 21 Gun 103 | 6 53 28 16 Cannon . | . . . . Launcher 6 | . . 1 5 Special . | . . . . Kinetic 18 | 3 15 . . Thermal 85 | 3 38 28 16 Explosive 6 | . . 1 5 Electromagnetic . | . . . . Robot Hit Streak 5 | 2 5 3 5 Robot Miss Streak 4 | 1 4 3 1 Penetration Max . | . . . . Secondary Targets . | . . . . Shots Hit Robots 47 | 4 25 13 5 Core Hits 23 | 1 12 7 3 Critical Kills 1 | 1 . . . Critical Parts Destroyed . | . . . . Critical Strikes 2 | 1 . 1 . Burn 1 | . . 1 . Destroy 1 | 1 . . . Melee Attacks . | . . . . Impact . | . . . . Slashing . | . . . . Piercing . | . . . . Sneak Attacks . | . . . . Combat Hostiles . | . . . . Follow-up Attacks . | . . . . Damage Inflicted 837 | 60 370 335 72 Guns 690 | 60 354 204 72 Cannons . | . . . . Explosions 122 | . . 122 . Melee . | . . . . Ramming 25 | . 16 9 . Kinetic 115 | 34 81 . . Thermal 575 | 26 273 204 72 Explosive 122 | . . 122 . Electromagnetic . | . . . . Impact . | . . . . Slashing . | . . . . Piercing . | . . . . Highest Corruption . | . . . . Average Corruption . | . . . . Corruption Purged . | . . . . Corruption Blocked . | . . . . Overload Shots . | . . . . Overflow Damage 14 | . . 14 . Projectiles . | . . . . Explosions 14 | . . 14 . Melee . | . . . . Knockbacks . | . . . . Impact . | . . . . Kinetic . | . . . . Secondary . | . . . . Self-Inflicted Damage . | . . . . Shots . | . . . . Rammed 5 | . 2 3 . Targets Rammed 5 | . 2 3 . Kicked . | . . . . Crushed . | . . . . Highest Temperature 335 | 27 240 335 . Average Temperature 93 | 14 60 152 . Received Heat Transfer 6 | . . . 6 Effects 2 | . . 2 . Energy Bleed 2 | . . 2 . Siege Activations . | . . . . Robots Corrupted . | . . . . Combat Hostiles . | . . . . Parts Fried . | . . . . Impact Corruptions . | . . . . Robots Melted . | . . . . Combat Hostiles . | . . . . Parts Melted 2 | . . 1 1 Heat Transferred 1591 | 74 740 592 185 Parts Sabotaged . | . . . . Parts Stolen . | . . . . Parts Stripped . | . . . . Power Chain Reactions . | . . . . Alert | -11 -10 -10 -10 ------- Run | Yrd Mat Min Sub Peak Influence 158 | 5 158 93 . Initial 3 | . 3 3 . Average 37 | 1 37 41 . Maximum Alert Level . | . . . . Low Security (%) 100 | 100 100 100 . Level 1 . | . . . . Level 2 . | . . . . Level 3 . | . . . . Level 4 . | . . . . Level 5 . | . . . . High Security . | . . . . Max Security . | . . . . Squads Dispatched 2 | . 1 1 . Investigation 2 | . 1 1 . Extermination . | . . . . Reinforcement . | . . . . Assault . | . . . . Garrison . | . . . . Intercept . | . . . . Searches Triggered . | . . . . Construction Impeded . | . . . . Haulers Reinforced . | . . . . Active Scanning Responses . | . . . . Cargo Convoy Interrupts . | . . . . Stealth | -11 -10 -10 -10 --------- Run | Yrd Mat Min Sub Distress Signals . | . . . . Communications Jammed . | . . . . Distress Signals . | . . . . Times Spotted 17 | . 10 4 3 Peak Tracking Total 3 | . 3 2 2 Tactical Retreats . | . . . . Traps | -11 -10 -10 -10 ------- Run | Yrd Mat Min Sub Traps Triggered 1 | . 1 . . Indirectly . | . . . . Trap Hack Attempts . | . . . . Triggered . | . . . . Disarmed . | . . . . Reprogrammed . | . . . . Reused . | . . . . Traps Extracted . | . . . . Installed . | . . . . Triggered 2 | . . . 2 Machines | -11 -10 -10 -10 ---------- Run | Yrd Mat Min Sub Machines Disabled 4 | . 1 1 2 Max in Single Turn 2 | . 1 1 2 Machines Repaired . | . . . . Machines Dismantled . | . . . . Machines Sabotaged . | . . . . Overloaded Fab Kills . | . . . . Hacking | -11 -10 -10 -10 --------- Run | Yrd Mat Min Sub Machines Accessed 5 | . 3 1 1 Terminals 3 | . 2 1 . Fabricators . | . . . . Repair Stations . | . . . . Recycling Units 1 | . 1 . . Scanalyzers . | . . . . Garrison Access . | . . . . Total Hacks 11 | . 8 2 1 Successful 3 | . 2 . 1 Failed 8 | . 6 2 . Catastrophic . | . . . . Database Lockouts . | . . . . Manual 7 | . 5 2 . Terminals 7 | . 5 2 . Fabricators . | . . . . Repair Stations . | . . . . Recycling Units 3 | . 3 . . Scanalyzers . | . . . . Garrison Access . | . . . . Terminal Hacks 2 | . 1 . 1 Robot Analysis 1 | . 1 . . Derelict Proto ID Bank 1 | . . . 1 Fabricator Hacks . | . . . . Repair Station Hacks . | . . . . Recycling Unit Hacks . | . . . . Scanalyzer . | . . . . Garrison Access Hacks . | . . . . Unauthorized Hacks 1 | . 1 . . Terminals . | . . . . Fabricators . | . . . . Repair Stations . | . . . . Recycling Units 1 | . 1 . . Tunnel 1 | . 1 . . Scanalyzers . | . . . . Garrison Access . | . . . . Data Cores Recovered . | . . . . Used . | . . . . Hacking Detections 3 | . 2 1 . Full Trace Events 1 | . . 1 . Feedback Events . | . . . . Feedback Blocked . | . . . . Robot Schematics Acquired . | . . . . Robots Built . | . . . . Authchips . | . . . . Time . | . . . . Total Robot Build Rating . | . . . . Part Schematics Acquired . | . . . . Parts Built . | . . . . Authchips . | . . . . Time . | . . . . Total Part Build Rating . | . . . . Parts Repaired . | . . . . Time . | . . . . Parts Recycled . | . . . . Recycled Matter . | . . . . Retrieved Matter . | . . . . Retrieved Components . | . . . . Parts Scanalyzed . | . . . . Part Schematics Acquired . | . . . . Parts Damaged . | . . . . Bothacking | -11 -10 -10 -10 ------------ Run | Yrd Mat Min Sub Used RIF Installer . | . . . . Robots Hacked . | . . . . Non-combat . | . . . . Combat . | . . . . Robot Hacks Applied . | . . . . Relay Couplers Released . | . . . . Fabnet Peak Effective % . | . . . . Robots Rewired . | . . . . Allies Hacked . | . . . . Hacks Repelled . | . . . . Allies | -11 -10 -10 -10 -------- Run | Yrd Mat Min Sub Total Allies 3 | . . 3 . Largest Group 3 | . . 3 3 Highest-Rated Group 40 | . . 40 40 Highest-Rated Ally 16 | . . 16 16 Total Orders 2 | . . . 2 STAY 1 | . . . 1 FOLLOW 1 | . . . 1 Ally Attacks 9 | . . . 9 Total Damage 95 | . . . 95 Kills 2 | . . . 2 Allies Corrupted . | . . . . Allies Melted . | . . . . Intel | -11 -10 -10 -10 ------- Run | Yrd Mat Min Sub Robot Analysis Total 1 | . 1 . . Derelict Logs Recovered 2 | . . 2 . Drone Launches . | . . . . Drone Recoveries . | . . . . Exploration | -11 -10 -10 -10 ------------- Run | Yrd Mat Min Sub Turns Passed 3068 | 92 841 1172 963 Spaces Moved 1462 | 51 453 399 559 Core 12 | 12 . . . Treads 1450 | 39 453 399 559 Legs . | . . . . Wheels . | . . . . Hover . | . . . . Flight . | . . . . Fastest Speed 50 | 50 160 160 160 Average Speed 159 | 134 160 160 160 Slowest Speed 160 | 160 160 160 160 Overloaded Moves . | . . . . Propulsion Burnouts . | . . . . Robots Hopped . | . . . . Cave-ins Triggered . | . . . . Exploration Rate (%) 38 | 3 55 66 28 Regions Visited 3 Branch Regions 2 Pre-discovered Areas 1 | . 1 . . Known Exits Taken . | . . . . Unknown Exits Taken 3 | 1 1 1 . Scrap Searched 6 | . . 3 3 Spaces Dug 10 | . . 6 4 Terrain Destroyed 26 | . . 6 20 Melee . | . . . . Projectile . | . . . . AOE 26 | . . 6 20 Terrain Rammed . | . . . . Walls Destroyed . | . . . . Machines Disabled . | . . . . Actions | -11 -10 -10 -10 --------- Run | Yrd Mat Min Sub Total 2094 | 69 517 900 608 Wait 496 | . 5 473 18 Move 1459 | 50 452 398 559 Hop . | . . . . Pick Up 32 | 10 17 2 3 Fast Attach 5 | . 2 3 . Attach 11 | 6 4 . 1 Detach . | . . . . Swap 8 | . 1 3 4 Drop 14 | . 7 3 4 Fire 64 | 3 27 15 19 Melee . | . . . . Ram . | . . . . Kick . | . . . . Crush 5 | . 2 3 . Escape Stasis . | . . . . Rewire . | . . . . Trap . | . . . . Miscellaneous . | . . . . Route ------- -11/Scrapyard -10/Materials (discovered 2 exits: [*Mat] / *Min) -10/Mines (discovered 2 exits: Exi / *Sub) -10/Subcaves History --------- Turn | Location | Event 3 | -11/Scrapyard | Discovered new exit (range 15) 93 | -11/Scrapyard | Entered Materials 224 | -10/Materials | Discovered new exit (range 13) 315 | -10/Materials | Build established: Mutant 715 | -10/Materials | Discovered new exit (range 6) 934 | -10/Materials | Entered Mines 990 | -10/Mines | Assembled infested the area 995 | -10/Mines | Assisted by a Guerilla fighting off Assembled 1558 | -10/Mines | Core integrity fell below 50% 1568 | -10/Mines | Core integrity fell below 20% 1717 | -10/Mines | Found a damaged Exp. Sensor Array with a note attached 1721 | -10/Mines | Found Prototype Device 1721 | -10/Mines | Identified Exp. Sensor Array 1872 | -10/Mines | Learned Materials emergency access door positions 1889 | -10/Mines | Discovered new exit (range 6) 1924 | -10/Mines | Assisted by bots powering up and referring to "LRC-V3" 2025 | -10/Mines | Identified exit to Exiles 2106 | -10/Mines | Entered Subcaves 2106 | -10/Subcaves | Accompanied by 3 allies 2501 | -10/Subcaves | Visited 4L-MR0's lab 2655 | -10/Subcaves | Found Power Bank 3069 | -10/Subcaves | Destroyed by 50-4GT(R) with Subdweller Laser Last Messages --------------- 02593_ 4L-MR0 mumbles to no one in particular: "Damn Subs sneaking around stealing my stuff." 02597_ 4L-MR0 mumbles: "I'm surprised some of them are even willing to come in here given their fear of my usual visitors." 02597_ Multitool melted. 02597_ 4L-MR0 cries out in pain. 02597_ 4L-MR0 destroyed. 02601_ Acquired 8 matter. 02639_ Testing Chamber breached. 02639_ Machine disabled. 02654_ Dropped Aluminum Leg. 02655_ Acquired Power Bank. 02693_ Subatomizers dissect the Sub. Power Source. 02838_ Acquired 15 matter. 02878_ Dropped Beam Rifle. 02878_ Dropped Med. Laser. 02879_ Acquired Cobbler Unit. 02880_ Acquired 5 matter. Map ----- +----------------------------------------------------+ | ??????????????????????????????????????????##### | | ??????????????????????????????????????????##### | | ??????????????????????????????????????????????# | | ??????????????????????????????????????????????# | | ??????????????????????????????????????????????#### | | ?????????????????????????????????????????????????# | | ?????????????????????????????????????????????????? | | ?????????????????????????????????????????????????? | | ?????????????????????????????????????????????????? | | ?????????????????????????????????????????????????? | | ?????????????????????????????????????????????????? | | ?????????????????????????????????????????????????? | | ?????????????????????????????????????????????????? | | ?????????????????????????????????????????????????? | | ?????????????????????????????????????????????????? | | ?????????????????????????????????????????????????? | | ?????????????????????????????????????????????????? | | ?????????????????????????????????????????????????? | | ?????????????????????????????????????????????????? | | ?????????????????????????????????????????????????? | | ?????????????#???????????????????????????????????? | | ?????????????# ????####?????##???????????????????? | | ?????????????# #??## ###??# #???????????????????? | | ??????????????" ?# ### #???????????????????? | | ??????????????## ## g #???????????????????? | | ?????????????##<